fUSD/lending_fUSD_20240429
["ID","MTS","AMOUNT","RATE_DAILY","PERIOD"]
[324931730,1714432240539,-500.0,0.0001262,2]
[324931732,1714432240548,-629.59,0.0001262,2]
[324931734,1714432240558,-500.0,0.0001262,2]
[324931736,1714432240567,-500.0,0.0001262,2]
[324931738,1714432240577,-225.07021246,0.0001262,2]
[324931740,1714432240586,-500.0,0.0001262,2]
[324931742,1714432240596,-252.26,0.0001262,2]
[324931744,1714432240607,-500.0,0.0001262,2]
[324931746,1714432240616,-769.44,0.0001262,2]
[324931748,1714432240625,-500.0,0.0001262,2]
[324931750,1714432240635,-500.0,0.0001262,2]
[324931752,1714432240646,-500.0,0.00012621,2]
[324931754,1714432240655,-1620.43,0.00012621,2]
[324931756,1714432240665,-1828.51,0.00012621,2]
[324931758,1714432240676,-500.0,0.00012621,2]
[324931760,1714432240685,-1722.3,0.00012621,2]
[324931762,1714432240694,-610.0,0.0001267,2]
[324931764,1714432240702,-909.0,0.0001267,2]
[324931766,1714432240711,-1881.63197234,0.0001274,2]
[324931767,1714432240720,-68204.91516289,0.000128,2]
[324931768,1714432240730,-11033.6383422,0.000128,2]
[324931769,1714432240739,-794.81631267,0.000128,2]
[324931771,1714432240748,-3000.0,0.0001287,2]
[324931773,1714432240757,-155.36852506,0.0001287,2]
[324931775,1714432240766,-956.0,0.00012877,2]
[324931777,1714432240775,-218.22894187,0.0001288,2]
[324931779,1714432240784,-413192.68292247,0.0001288,2]
[324931803,1714432241183,-1262299.15503326,0.0001288,2]
[324931804,1714432241195,-69527.86107357,0.0001288,2]
[324931805,1714432241207,-305.38257962,0.0001288,2]
[324931806,1714432241227,-12444.66287492,0.0001288,2]
[324931807,1714432241263,-500.0,0.00012072,2]
[324931808,1714432241272,-160253.74856936,0.0001288,2]
[324931809,1714432241284,-392.8545,0.0001288,2]
[324931810,1714432241316,-438.61202703,0.0001288,2]
[324931811,1714432241334,-1800276.50908855,0.0001288,2]
[324931812,1714432241360,-627.10341849,0.0001288,2]
[324931813,1714432241372,-311.75649,0.0001288,2]
[324931814,1714432241671,-500.0,0.00012346,2]
[324931815,1714432241681,-49.80271798,0.0001262,2]
[324931816,1714432241694,-450.19728202,0.0001262,2]
[324931817,1714432241703,-6259.76639799,0.0001288,2]
[324931818,1714432241717,-981.8523025,0.0001288,2]
[324931819,1714432241728,-1938.035,0.0001288,2]
[324931820,1714432241740,-1121.2213578,0.0001288,2]
[324931823,1714432241752,-3113.9427,0.0001288,2]
[324931851,1714432243514,-607.62,0.00011798,2]
[324931852,1714432243523,-6105.70558,0.0001288,2]
[324931853,1714432243569,-1996.47250406,0.0001288,2]
[324931854,1714432243580,-1617.54841446,0.0001288,2]
[324931855,1714432243679,-3200.131076,0.0001288,2]
[324931856,1714432243735,-242035.95201889,0.0001288,2]
[324931857,1714432243791,-392.30596212,0.0001288,2]
[324931866,1714432246370,-500.0,0.00011798,2]
[324931867,1714432246379,-500.0,0.00011798,2]
[324931868,1714432246388,-500.0,0.00012072,2]
[324931869,1714432246398,-500.0,0.00012072,2]
[324931870,1714432246407,-320.205,0.00012102,2]
[324931871,1714432246415,-500.0,0.00012346,2]
[324931872,1714432246425,-500.0,0.00012346,2]
[324931873,1714432246434,-500.0,0.0001262,2]
[324931874,1714432246443,-180.1,0.0001262,2]
[324931875,1714432246453,-9170.79438464,0.0001288,2]
[324931876,1714432246532,-1612.35,0.0001288,2]
[324931877,1714432246589,-19251.20163501,0.0001288,2]
[324931879,1714432574400,1208.11,9.286e-05,2]
[324931881,1714432722663,156.28,8.693e-05,2]
[324931882,1714433096054,1147.7,8.603e-05,2]
[324931891,1714433431519,-262.44920818,0.00010399,2]
[324931892,1714433431529,-395.80079182,0.000104,2]
[324931893,1714433431540,-846.87502127,0.000104,2]
[324931894,1714433431550,-781.81418738,0.00010401,2]
[324931895,1714433431560,-533.44494604,0.00010402,2]
[324931896,1714433431570,-465.06,0.00010412,2]
[324931897,1714433431579,-250.0,0.00010457,2]
[324931898,1714433431588,-1889.0,0.0001047,2]
[324931899,1714433431597,-167.44,0.00010475,2]
[324931900,1714433431606,-150.0,0.00010654,2]
[324931901,1714433431616,-20021.67,0.00010655,2]
[324931902,1714433431625,-190.29,0.00010748,2]
[324931903,1714433431634,-150.99,0.00010748,2]
[324931904,1714433431643,-499.99,0.00010748,2]
[324931905,1714433431653,-150.99,0.00010815,2]
[324931906,1714433431662,-1147.7,0.00010867,2]
[324931907,1714433431672,-164.64,0.00010891,2]
[324931908,1714433431681,-319.5,0.00010892,2]
[324931909,1714433431691,-250.0,0.00010959,2]
[324931910,1714433431700,-150.0,0.00010959,2]
[324931911,1714433431710,-174.76,0.00011156,2]
[324931912,1714433431720,-573.98944192,0.00011229,2]
[324931913,1714433431728,-23487.95240133,0.00011541,2]
[324931914,1714433431749,-5813.04759867,0.00011541,2]
[324931915,1714433431758,-800.0,0.00011562,2]
[324931916,1714433431768,-800.0,0.00011562,2]
[324931917,1714433431777,-800.0,0.00011562,2]
[324931918,1714433431786,-469.47635736,0.00011594,2]
[324931919,1714433431796,-400.73856717,0.00011595,2]
[324931920,1714433431805,-500.0,0.00011595,2]
[324931921,1714433431815,-632.11437088,0.00011595,2]
[324931922,1714433431824,-500.0,0.00011595,2]
[324931923,1714433431833,-500.0,0.00011595,2]
[324931924,1714433431842,-500.0,0.00011595,2]
[324931925,1714433431852,-500.0,0.00011595,2]
[324931927,1714433431861,-500.0,0.00011595,2]
[324931929,1714433431870,-500.0,0.00011595,2]
[324931930,1714433431879,-500.0,0.00011595,2]
[324931931,1714433431888,-500.0,0.00011595,2]
[324931932,1714433431898,-500.0,0.00011595,2]
[324931933,1714433431908,-500.0,0.00011595,2]
[324931935,1714433431919,-500.0,0.00011595,2]
[324931936,1714433431927,-500.0,0.00011595,2]
[324931937,1714433431936,-1099.74,0.00011595,2]
[324931938,1714433431946,-500.0,0.00011595,2]
[324931939,1714433431955,-500.21,0.00011595,2]
[324931940,1714433431965,-500.0,0.00011595,2]
[324931941,1714433431975,-500.0,0.00011595,2]
[324931942,1714433431985,-995.81,0.00011595,2]
[324931943,1714433431997,-500.0,0.00011595,2]
[324931944,1714433432007,-500.0,0.00011595,2]
[324931945,1714433432016,-500.0,0.00011595,2]
[324931946,1714433432026,-500.0,0.00011595,2]
[324931947,1714433432035,-500.0,0.00011595,2]
[324931948,1714433432045,-598.52,0.00011595,2]
[324931949,1714433432053,-500.0,0.00011595,2]
[324931950,1714433432063,-500.0,0.00011595,2]
[324931951,1714433432073,-500.0,0.00011595,2]
[324931952,1714433432083,-500.0,0.00011595,2]
[324931953,1714433432092,-500.0,0.00011595,2]
[324931954,1714433432101,-500.0,0.00011595,2]
[324931955,1714433432110,-708.55,0.00011595,2]
[324931956,1714433432120,-500.0,0.00011595,2]
[324931957,1714433432129,-1012.38,0.00011595,2]
[324931958,1714433432138,-500.0,0.00011595,2]
[324931959,1714433432147,-546.21,0.00011595,2]
[324931960,1714433432156,-500.0,0.00011595,2]
[324931961,1714433432167,-500.0,0.00011595,2]
[324931962,1714433432176,-535.46,0.00011595,2]
[324931963,1714433432185,-984.14,0.00011595,2]
[324931964,1714433432195,-500.0,0.00011595,2]
[324931965,1714433432204,-500.0,0.00011595,2]
[324931966,1714433432215,-500.0,0.00011595,2]
[324931967,1714433432225,-500.0,0.00011595,2]
[324931968,1714433432234,-500.0,0.00011595,2]
[324931969,1714433432245,-500.0,0.00011595,2]
[324931970,1714433432254,-500.0,0.00011595,2]
[324931971,1714433432263,-517.08,0.00011595,2]
[324931972,1714433432273,-1100.97,0.00011595,2]
[324931973,1714433432282,-500.0,0.00011595,2]
[324931974,1714433432291,-584.81,0.00011595,2]
[324931975,1714433432300,-1037.49,0.00011595,2]
[324931976,1714433432310,-500.0,0.00011595,2]
[324931977,1714433432320,-795.18,0.00011595,2]
[324931978,1714433432329,-500.0,0.00011595,2]
[324931979,1714433432338,-500.0,0.00011595,2]
[324931980,1714433432347,-500.0,0.00011595,2]
[324931981,1714433432356,-500.0,0.00011595,2]
[324931982,1714433432365,-556.94,0.00011595,2]
[324931983,1714433432375,-1983.76,0.00011595,2]
[324931984,1714433432384,-500.0,0.00011595,2]
[324931985,1714433432393,-500.0,0.00011595,2]
[324931986,1714433432402,-500.0,0.00011595,2]
[324931987,1714433432412,-500.0,0.00011595,2]
[324931988,1714433432423,-524.66,0.00011595,2]
[324931989,1714433432432,-500.0,0.00011595,2]
[324931990,1714433432441,-500.0,0.00011595,2]
[324931991,1714433432451,-500.0,0.00011595,2]
[324931992,1714433432460,-500.0,0.00011595,2]
[324931993,1714433432469,-500.0,0.00011595,2]
[324931994,1714433432478,-500.0,0.00011595,2]
[324931995,1714433432487,-500.0,0.00011595,2]
[324931996,1714433432497,-500.0,0.00011595,2]
[324931997,1714433432506,-603.28,0.00011595,2]
[324931998,1714433432515,-500.0,0.00011595,2]
[324931999,1714433432524,-500.0,0.00011595,2]
[324932000,1714433432533,-500.0,0.00011595,2]
[324932001,1714433432542,-174.92,0.00011595,2]
[324932002,1714433432551,-641.2,0.00011595,2]
[324932003,1714433432560,-500.0,0.00011595,2]
[324932004,1714433432570,-1952.212,0.00011595,2]
[324932005,1714433432579,-1852.07637701,0.00011596,2]
[324932006,1714433432592,-6299.5175963,0.00011596,2]
[324932007,1714433432607,-385.01912969,0.00011596,2]
[324932008,1714433432617,-462.3687692,0.00011596,2]
[324932009,1714433432629,-460.43123519,0.00011596,2]
[324932010,1714433432640,-15050.72079261,0.00011596,2]
[324932011,1714433432650,-21147.7318,0.00011596,2]
[324932012,1714433432659,-5282.9076,0.00011596,2]
[324932013,1714433432671,-54273.70881437,0.00011596,2]
[324932014,1714433432682,-300.0,0.00011596,2]
[324932015,1714433432703,-614.7279758,0.00011596,2]
[324932016,1714433432714,-428.101543,0.00011596,2]
[324932017,1714433432725,-61206.5463406,0.00011596,2]
[324932018,1714433432742,-128176.91532623,0.00011596,2]
[324932019,1714433432751,-2398.2696,0.00011596,2]
[324932020,1714433432760,-800.0,0.00011671,2]
[324932021,1714433432770,-800.0,0.00011671,2]
[324932022,1714433432779,-181.53787437,0.00011686,2]
[324932023,1714433432788,-500.0,0.00011695,2]
[324932024,1714433432797,-500.0,0.00011695,2]
[324932025,1714433432807,-500.0,0.00011695,2]
[324932026,1714433432816,-500.0,0.00011695,2]
[324932027,1714433432824,-624.09,0.00011695,2]
[324932028,1714433432834,-220.52189417,0.00011695,2]
[324932029,1714433432843,-500.0,0.00011695,2]
[324932030,1714433432852,-500.0,0.00011695,2]
[324932031,1714433432861,-500.0,0.00011695,2]
[324932032,1714433432870,-500.0,0.00011695,2]
[324932033,1714433432879,-500.0,0.00011695,2]
[324932034,1714433432888,-516.92,0.00011695,2]
[324932035,1714433432897,-500.0,0.00011695,2]
[324932036,1714433432906,-500.0,0.00011695,2]
[324932037,1714433432916,-500.0,0.00011695,2]
[324932038,1714433432924,-500.0,0.00011695,2]
[324932039,1714433432934,-500.0,0.00011695,2]
[324932040,1714433432943,-500.0,0.00011695,2]
[324932041,1714433432952,-500.0,0.00011695,2]
[324932042,1714433432962,-500.0,0.00011695,2]
[324932043,1714433432974,-500.0,0.00011695,2]
[324932044,1714433432987,-500.0,0.00011695,2]
[324932045,1714433432998,-500.0,0.00011695,2]
[324932046,1714433433007,-500.0,0.00011695,2]
[324932047,1714433433017,-500.0,0.00011695,2]
[324932048,1714433433027,-500.0,0.00011695,2]
[324932049,1714433433036,-500.0,0.00011695,2]
[324932050,1714433433046,-500.0,0.00011695,2]
[324932051,1714433433060,-500.0,0.00011695,2]
[324932052,1714433433069,-493.103846,0.00011695,2]
[324932053,1714433433079,-508.73,0.00011695,2]
[324932054,1714433433088,-500.0,0.00011695,2]
[324932055,1714433433098,-500.0,0.00011695,2]
[324932056,1714433433107,-500.0,0.00011695,2]
[324932057,1714433433116,-500.0,0.00011695,2]
[324932058,1714433433126,-500.0,0.00011695,2]
[324932059,1714433433135,-500.0,0.00011695,2]
[324932060,1714433433145,-500.0,0.00011695,2]
[324932061,1714433433154,-500.0,0.00011695,2]
[324932062,1714433433164,-500.0,0.00011695,2]
[324932063,1714433433174,-500.0,0.00011695,2]
[324932064,1714433433184,-500.0,0.00011695,2]
[324932065,1714433433193,-500.0,0.00011695,2]
[324932066,1714433433202,-500.0,0.00011695,2]
[324932067,1714433433212,-500.0,0.00011695,2]
[324932068,1714433433221,-500.0,0.00011695,2]
[324932069,1714433433231,-500.0,0.00011695,2]
[324932070,1714433433240,-500.0,0.00011695,2]
[324932071,1714433433249,-500.0,0.00011695,2]
[324932072,1714433433258,-500.0,0.00011695,2]
[324932073,1714433433267,-500.0,0.00011695,2]
[324932074,1714433433276,-221.96331757,0.00011695,2]
[324932075,1714433433286,-500.0,0.00011695,2]
[324932076,1714433433295,-500.0,0.00011695,2]
[324932077,1714433433304,-500.0,0.00011695,2]
[324932078,1714433433314,-500.0,0.00011695,2]
[324932079,1714433433323,-500.0,0.00011695,2]
[324932080,1714433433333,-500.0,0.00011695,2]
[324932081,1714433433342,-500.0,0.00011695,2]
[324932082,1714433433351,-500.0,0.00011695,2]
[324932083,1714433433360,-540.24,0.00011695,2]
[324932084,1714433433370,-500.0,0.00011695,2]
[324932085,1714433433379,-500.0,0.00011695,2]
[324932086,1714433433388,-500.0,0.00011695,2]
[324932087,1714433433398,-500.0,0.00011695,2]
[324932088,1714433433406,-517.3,0.00011695,2]
[324932089,1714433433416,-534.61,0.00011695,2]
[324932090,1714433433425,-500.0,0.00011695,2]
[324932091,1714433433434,-500.0,0.00011695,2]
[324932092,1714433433443,-500.0,0.00011695,2]
[324932093,1714433433453,-500.0,0.00011695,2]
[324932094,1714433433462,-575.92,0.00011695,2]
[324932095,1714433433471,-500.0,0.00011695,2]
[324932096,1714433433481,-500.0,0.00011695,2]
[324932097,1714433433490,-500.0,0.00011695,2]
[324932098,1714433433499,-500.0,0.00011695,2]
[324932099,1714433433509,-500.0,0.00011695,2]
[324932100,1714433433518,-500.0,0.00011695,2]
[324932101,1714433433528,-280.96461844,0.00011695,2]
[324932102,1714433433538,-563.96462136,0.00011695,2]
[324932103,1714433433547,-502.05183797,0.00011695,2]
[324932104,1714433433556,-522.68,0.00011695,2]
[324932105,1714433433566,-500.0,0.00011695,2]
[324932106,1714433433576,-500.0,0.00011695,2]
[324932107,1714433433585,-210.5135652,0.00011695,2]
[324932108,1714433433595,-500.0,0.00011695,2]
[324932109,1714433433605,-567.19349719,0.00011695,2]
[324932110,1714433433614,-501.36785672,0.00011695,2]
[324932111,1714433433625,-510.39,0.00011695,2]
[324932112,1714433433635,-500.0,0.00011695,2]
[324932113,1714433433645,-500.0,0.00011695,2]
[324932114,1714433433655,-500.0,0.00011695,2]
[324932115,1714433433665,-500.0,0.00011695,2]
[324932116,1714433433674,-558.04291659,0.00011695,2]
[324932117,1714433433683,-435.32760414,0.00011695,2]
[324932118,1714433433693,-500.0,0.00011695,2]
[324932119,1714433433702,-500.0,0.00011695,2]
[324932120,1714433433711,-500.0,0.00011695,2]
[324932121,1714433433721,-218.59541938,0.00011695,2]
[324932122,1714433433731,-500.0,0.00011695,2]
[324932123,1714433433740,-500.0,0.00011695,2]
[324932124,1714433433749,-191.14776903,0.00011695,2]
[324932125,1714433433759,-500.0,0.00011695,2]
[324932126,1714433433768,-500.0,0.00011695,2]
[324932127,1714433433778,-312.5,0.00011695,2]
[324932128,1714433433787,-397.2016048,0.00011695,2]
[324932129,1714433433796,-500.0,0.00011695,2]
[324932130,1714433433805,-500.0,0.00011695,2]
[324932131,1714433433815,-500.0,0.00011695,2]
[324932132,1714433433823,-500.0,0.00011695,2]
[324932133,1714433433833,-500.0,0.00011695,2]
[324932134,1714433433842,-500.0,0.00011695,2]
[324932135,1714433433851,-510.50527578,0.00011695,2]
[324932136,1714433433860,-586.74,0.00011695,2]
[324932137,1714433433869,-500.0,0.00011695,2]
[324932138,1714433433879,-500.0,0.00011695,2]
[324932139,1714433433888,-574.34,0.00011695,2]
[324932140,1714433433897,-500.0,0.00011695,2]
[324932141,1714433433907,-500.0,0.00011695,2]
[324932142,1714433433918,-500.0,0.00011695,2]
[324932143,1714433433927,-500.0,0.00011695,2]
[324932144,1714433433938,-500.0,0.00011695,2]
[324932145,1714433433947,-500.0,0.00011695,2]
[324932146,1714433433956,-500.0,0.00011695,2]
[324932147,1714433433966,-500.0,0.00011695,2]
[324932148,1714433433980,-500.0,0.00011695,2]
[324932149,1714433433989,-500.0,0.00011695,2]
[324932150,1714433433998,-500.0,0.00011695,2]
[324932151,1714433434007,-596.99,0.00011695,2]
[324932152,1714433434018,-500.0,0.00011695,2]
[324932153,1714433434028,-500.0,0.00011695,2]
[324932154,1714433434037,-500.0,0.00011695,2]
[324932155,1714433434047,-500.0,0.00011695,2]
[324932156,1714433434057,-1399.55,0.00011695,2]
[324932157,1714433434067,-500.0,0.00011695,2]
[324932158,1714433434078,-500.0,0.00011695,2]
[324932159,1714433434087,-500.0,0.00011695,2]
[324932160,1714433434096,-500.0,0.00011695,2]
[324932161,1714433434106,-2409.23,0.00011695,2]
[324932162,1714433434116,-500.0,0.00011695,2]
[324932163,1714433434125,-500.0,0.00011695,2]
[324932164,1714433434135,-500.0,0.00011695,2]
[324932165,1714433434144,-500.0,0.00011695,2]
[324932166,1714433434153,-500.0,0.00011695,2]
[324932167,1714433434163,-500.0,0.00011695,2]
[324932168,1714433434175,-1435.25,0.00011695,2]
[324932169,1714433434184,-500.0,0.00011695,2]
[324932170,1714433434193,-500.0,0.00011695,2]
[324932171,1714433434202,-251.7,0.00011695,2]
[324932172,1714433434211,-648.04,0.00011695,2]
[324932173,1714433434221,-500.0,0.00011695,2]
[324932174,1714433434230,-598.52,0.00011695,2]
[324932175,1714433434241,-598.52,0.00011695,2]
[324932176,1714433434251,-598.52,0.00011695,2]
[324932177,1714433434260,-500.0,0.00011695,2]
[324932178,1714433434269,-500.0,0.00011695,2]
[324932179,1714433434278,-910.41,0.00011695,2]
[324932180,1714433434287,-120899.55599592,0.00011696,2]
[324932181,1714433434301,-4321.14263448,0.00011696,2]
[324932182,1714433434312,-29884.293204,0.00011696,2]
[324932183,1714433437638,-500.0,0.00011595,2]
[324932184,1714433437648,-616.81190892,0.00011595,2]
[324932185,1714433437657,-5973.77019402,0.00011696,2]
[324932186,1714433437691,-6446.8404,0.00011696,2]
[324932187,1714433438094,-4010.15267513,0.00011696,2]
[324932188,1714433438106,-51322.1,0.00011696,2]
[324932189,1714433438117,-1284.2,0.00011696,2]
[324932190,1714433438128,-25239.82464,0.00011696,2]
[324932191,1714433438142,-40188.70718728,0.00011696,2]
[324932228,1714433439685,-500.0,0.00011595,2]
[324932230,1714433439695,-513.23,0.00011595,2]
[324932232,1714433439704,-500.0,0.00011595,2]
[324932234,1714433439713,-15719.37116287,0.00011696,2]
[324932237,1714433439725,-527.7973051,0.00011696,2]
[324932239,1714433439736,-324.28599953,0.00011696,2]
[324932241,1714433439747,-2640.10736042,0.00011696,2]
[324932243,1714433439902,-7691.69763579,0.00011696,2]
[324932244,1714433439914,-443.43736833,0.00011696,2]
[324932245,1714433439927,-611.68607072,0.00011696,2]
[324932246,1714433439956,-1538.7074705,0.00011696,2]
[324932263,1714433442710,-500.0,0.00011595,2]
[324932264,1714433442720,-500.0,0.00011595,2]
[324932265,1714433442729,-889.08592415,0.00011696,2]
[324932266,1714433442764,-550.955965,0.00011696,2]
[324932267,1714433442822,-172736.10772248,0.00011696,2]
[324932268,1714433442832,-465.06,0.00011713,2]
[324932269,1714433442843,-210.0,0.0001172,2]
[324932270,1714433442853,-167.44,0.00011784,2]
[324932271,1714433442863,-497.25,0.00011798,2]
[324932272,1714433442873,-500.0,0.00011798,2]
[324932273,1714433442882,-628.53,0.00011798,2]
[324932274,1714433442891,-500.0,0.00011798,2]
[324932275,1714433442900,-484.25,0.00011798,2]
[324932276,1714433442909,-500.0,0.00011798,2]
[324932277,1714433442918,-500.0,0.00011798,2]
[324932278,1714433442927,-500.0,0.00011798,2]
[324932279,1714433442936,-500.0,0.00011798,2]
[324932280,1714433442945,-451.88,0.00011798,2]
[324932281,1714433442955,-500.0,0.00011869,2]
[324932282,1714433442964,-500.0,0.00011869,2]
[324932283,1714433442976,-595.68688203,0.00011869,2]
[324932284,1714433442986,-315.0,0.00011869,2]
[324932285,1714433442994,-500.0,0.00011869,2]
[324932286,1714433443003,-1099.74,0.00011869,2]
[324932287,1714433443014,-500.21,0.00011869,2]
[324932288,1714433443023,-500.0,0.00011869,2]
[324932289,1714433443032,-500.0,0.00011869,2]
[324932290,1714433443042,-995.81,0.00011869,2]
[324932291,1714433443051,-500.0,0.00011869,2]
[324932292,1714433443063,-500.0,0.00011869,2]
[324932293,1714433443073,-500.0,0.00011869,2]
[324932294,1714433443082,-500.0,0.00011869,2]
[324932295,1714433443091,-500.0,0.00011869,2]
[324932296,1714433443100,-500.0,0.00011869,2]
[324932297,1714433443109,-500.0,0.00011869,2]
[324932298,1714433443118,-500.0,0.00011869,2]
[324932299,1714433443127,-500.0,0.00011869,2]
[324932300,1714433443136,-708.55,0.00011869,2]
[324932301,1714433443145,-1012.38,0.00011869,2]
[324932302,1714433443155,-546.21,0.00011869,2]
[324932303,1714433443165,-500.0,0.00011869,2]
[324932304,1714433443174,-500.0,0.00011869,2]
[324932305,1714433443183,-535.46,0.00011869,2]
[324932306,1714433443192,-984.14,0.00011869,2]
[324932307,1714433443201,-500.0,0.00011869,2]
[324932308,1714433443211,-500.0,0.00011869,2]
[324932310,1714433443220,-500.0,0.00011869,2]
[324932312,1714433443229,-500.0,0.00011869,2]
[324932314,1714433443238,-500.0,0.00011869,2]
[324932316,1714433443247,-517.08,0.00011869,2]
[324932317,1714433443256,-500.0,0.00011869,2]
[324932319,1714433443265,-1100.97,0.00011869,2]
[324932320,1714433443274,-500.0,0.00011869,2]
[324932321,1714433443283,-584.81,0.00011869,2]
[324932322,1714433443292,-500.0,0.00011869,2]
[324932323,1714433443301,-1037.49,0.00011869,2]
[324932324,1714433443310,-795.18,0.00011869,2]
[324932325,1714433443319,-500.0,0.00011869,2]
[324932326,1714433443328,-1983.76,0.00011869,2]
[324932327,1714433443338,-500.0,0.00011869,2]
[324932328,1714433443346,-500.0,0.00011869,2]
[324932329,1714433443356,-500.0,0.00011869,2]
[324932330,1714433443365,-524.66,0.00011869,2]
[324932331,1714433443374,-500.0,0.00011869,2]
[324932332,1714433443383,-500.0,0.00011869,2]
[324932333,1714433443392,-500.0,0.00011869,2]
[324932334,1714433443401,-211.1,0.00011869,2]
[324932335,1714433443411,-412.12027775,0.00011869,2]
[324932336,1714433443420,-183.72,0.00011869,2]
[324932337,1714433443430,-603.28,0.00011869,2]
[324932338,1714433443439,-289.8108215,0.00011869,2]
[324932339,1714433443447,-500.0,0.00011869,2]
[324932340,1714433443456,-631.05,0.00011869,2]
[324932341,1714433443466,-641.2,0.00011869,2]
[324932342,1714433443475,-500.0,0.00011869,2]
[324932343,1714433443484,-500.0,0.00011869,2]
[324932344,1714433443493,-500.0,0.00011869,2]
[324932345,1714433443502,-513.23,0.00011869,2]
[324932346,1714433443512,-500.0,0.00011869,2]
[324932347,1714433443521,-400.73856717,0.00011891,2]
[324932348,1714433443531,-639.52,0.00011969,2]
[324932349,1714433443540,-451.65,0.00011969,2]
[324932350,1714433443550,-500.0,0.00011969,2]
[324932351,1714433443560,-500.0,0.00011969,2]
[324932352,1714433443575,-500.0,0.00011969,2]
[324932353,1714433443585,-339.0,0.00011969,2]
[324932354,1714433443595,-442.58,0.00011969,2]
[324932355,1714433443605,-319.69,0.00011969,2]
[324932356,1714433443615,-500.0,0.00011969,2]
[324932357,1714433443624,-278.3,0.00011969,2]
[324932358,1714433443633,-333.94,0.00011969,2]
[324932359,1714433443642,-504.0,0.00011969,2]
[324932360,1714433443651,-274.87,0.00011969,2]
[324932361,1714433443661,-345.9,0.00011969,2]
[324932362,1714433443672,-199.42,0.00011969,2]
[324932363,1714433443682,-500.0,0.00011969,2]
[324932364,1714433443691,-500.0,0.00011969,2]
[324932365,1714433443700,-500.0,0.00011969,2]
[324932366,1714433443709,-522.68,0.00011969,2]
[324932367,1714433443718,-440.76,0.00011969,2]
[324932368,1714433443728,-500.0,0.00011969,2]
[324932369,1714433443737,-497.5,0.00011969,2]
[324932370,1714433443746,-500.0,0.00011969,2]
[324932371,1714433443756,-500.0,0.00011969,2]
[324932372,1714433443765,-500.0,0.00011969,2]
[324932373,1714433443775,-1399.55,0.00011969,2]
[324932374,1714433443784,-500.0,0.00011969,2]
[324932375,1714433443793,-2409.23,0.00011969,2]
[324932376,1714433443802,-500.0,0.00011969,2]
[324932377,1714433443811,-1435.25,0.00011969,2]
[324932378,1714433443819,-628.45,0.00011969,2]
[324932379,1714433443828,-500.0,0.00011969,2]
[324932380,1714433443837,-648.04,0.00011969,2]
[324932381,1714433443847,-500.0,0.00011969,2]
[324932382,1714433443856,-910.41,0.00011969,2]
[324932383,1714433443865,-168.52611108,0.00011972,2]
[324932384,1714433443874,-598.52,0.00011999,2]
[324932385,1714433443884,-301315.71570726,0.00012,2]
[324932386,1714433443892,-182.66,0.00012033,2]
[324932387,1714433443902,-28186.13,0.00012055,2]
[324932388,1714433443911,-160.93,0.00012072,2]
[324932389,1714433443920,-500.0,0.00012072,2]
[324932390,1714433443930,-500.0,0.00012072,2]